[Event "Titled Tuesday Blitz August 1 Early 2023"]
[White "Skliarov, Viktor"]
[Black "Rama, Tejas"]
[WhiteFideId "14106736"]
[BlackFideId "30907381"]
[WhiteElo "2669"]
[BlackElo "2484"]
[Result "1-0"]
[Round "4"]
[TimeControl "180+1"]
[Date "2023.08.01"]
[WhiteClock "0:00:22"]
[BlackClock "0:00:03"]
[Board "92"]

1. e4 {[%clk 0:03:00]}  e5 {[%clk 0:02:49]} 2. Nc3 {[%clk 0:03:00]}  Nf6 {[%clk 0:02:49]} 3. Bc4 {[%clk 0:03:01]}  Nc6 {[%clk 0:02:48]} 4. d3 {[%clk 0:03:01]}  Na5 {[%clk 0:02:43]} 5. Nge2 {[%clk 0:03:01]}  c6 {[%clk 0:02:41]} 6. Ng3 {[%clk 0:02:58]}  Bb4 {[%clk 0:01:57]} 7. Bd2 {[%clk 0:02:49]}  O-O {[%clk 0:01:54]} 8. a3 {[%clk 0:02:45]}  Nxc4 {[%clk 0:01:55]} 9. axb4 {[%clk 0:02:43]}  Nxd2 {[%clk 0:01:53]} 10. Qxd2 {[%clk 0:02:43]}  d5 {[%clk 0:01:53]} 11. O-O {[%clk 0:02:39]}  dxe4 {[%clk 0:01:26]} 12. Ngxe4 {[%clk 0:02:34]}  Bf5 {[%clk 0:01:17]} 13. Nxf6+ {[%clk 0:02:25]}  Qxf6 {[%clk 0:01:17]} 14. Qe3 {[%clk 0:02:26]}  a6 {[%clk 0:01:03]} 15. Na4 {[%clk 0:02:25]}  Qd6 {[%clk 0:00:55]} 16. Qc5 {[%clk 0:02:16]}  Rad8 {[%clk 0:00:52]} 17. Rfe1 {[%clk 0:02:11]}  f6 {[%clk 0:00:46]} 18. f4 {[%clk 0:01:58]}  Qd4+ {[%clk 0:00:40]} 19. Qxd4 {[%clk 0:01:54]}  Rxd4 {[%clk 0:00:41]} 20. fxe5 {[%clk 0:01:48]}  Rxb4 {[%clk 0:00:35]} 21. exf6 {[%clk 0:01:20]}  Rxf6 {[%clk 0:00:34]} 22. c3 {[%clk 0:01:20]}  Rb5 {[%clk 0:00:34]} 23. d4 {[%clk 0:01:19]}  Bc2 {[%clk 0:00:29]} 24. b4 {[%clk 0:01:04]}  Bxa4 {[%clk 0:00:28]} 25. Rxa4 {[%clk 0:01:03]}  Kf7 {[%clk 0:00:22]} 26. Ra2 {[%clk 0:01:03]}  Re6 {[%clk 0:00:20]} 27. Rae2 {[%clk 0:01:02]}  Rxe2 {[%clk 0:00:19]} 28. Rxe2 {[%clk 0:01:03]}  a5 {[%clk 0:00:20]} 29. bxa5 {[%clk 0:01:03]}  Rxa5 {[%clk 0:00:20]} 30. Kf2 {[%clk 0:01:03]}  Ra3 {[%clk 0:00:20]} 31. Re3 {[%clk 0:01:03]}  Kf6 {[%clk 0:00:19]} 32. Kf3 {[%clk 0:01:03]}  b5 {[%clk 0:00:19]} 33. h4 {[%clk 0:01:01]}  Ra8 {[%clk 0:00:18]} 34. g4 {[%clk 0:01:00]}  h6 {[%clk 0:00:18]} 35. Kf4 {[%clk 0:00:58]}  g5+ {[%clk 0:00:17]} 36. hxg5+ {[%clk 0:00:58]}  hxg5+ {[%clk 0:00:18]} 37. Ke4 {[%clk 0:00:40]}  Ra1 {[%clk 0:00:14]} 38. Rf3+ {[%clk 0:00:38]}  Ke6 {[%clk 0:00:15]} 39. Rf5 {[%clk 0:00:37]}  Rc1 {[%clk 0:00:10]} 40. Kd3 {[%clk 0:00:37]}  Rd1+ {[%clk 0:00:09]} 41. Kc2 {[%clk 0:00:36]}  Rg1 {[%clk 0:00:08]} 42. Rxg5 {[%clk 0:00:36]}  Kf6 {[%clk 0:00:07]} 43. Rc5 {[%clk 0:00:33]}  Ke7 {[%clk 0:00:08]} 44. Rxc6 {[%clk 0:00:29]}  Rxg4 {[%clk 0:00:08]} 45. Kb3 {[%clk 0:00:22]}  Kd7 {[%clk 0:00:03]} 46. Rc5 {[%clk 0:00:22]} 1-0


[Site "https://www.chess.com"]

[Event "Titled Tuesday Blitz August 1 Early 2023"]
[White "favesaul"]
[Black "Poormosavi, Seyed Kian"]
[BlackFideId "12585807"]
[WhiteElo "2468"]
[BlackElo "2664"]
[Result "0-1"]
[Round "4"]
[TimeControl "180+1"]
[Date "2023.08.01"]
[WhiteClock "0:00:19"]
[BlackClock "0:01:02"]
[Board "94"]

1. e4 {[%clk 0:03:00]}  c6 {[%clk 0:02:57]} 2. d4 {[%clk 0:03:00]}  d5 {[%clk 0:02:53]} 3. e5 {[%clk 0:03:00]}  c5 {[%clk 0:02:53]} 4. dxc5 {[%clk 0:03:00]}  e6 {[%clk 0:02:53]} 5. a3 {[%clk 0:02:59]}  Bxc5 {[%clk 0:02:51]} 6. b4 {[%clk 0:03:00]}  Be7 {[%clk 0:02:51]} 7. Qg4 {[%clk 0:02:40]}  Kf8 {[%clk 0:02:34]} 8. Bb2 {[%clk 0:02:36]}  f6 {[%clk 0:02:33]} 9. Qf4 {[%clk 0:02:24]}  Nc6 {[%clk 0:02:32]} 10. Nf3 {[%clk 0:02:24]}  Nh6 {[%clk 0:02:29]} 11. b5 {[%clk 0:02:16]}  Na5 {[%clk 0:02:25]} 12. Nbd2 {[%clk 0:02:12]}  Nf7 {[%clk 0:02:24]} 13. Bd3 {[%clk 0:02:08]}  f5 {[%clk 0:02:18]} 14. h4 {[%clk 0:02:07]}  g6 {[%clk 0:02:11]} 15. O-O {[%clk 0:02:01]}  b6 {[%clk 0:02:08]} 16. Rfd1 {[%clk 0:01:57]}  h6 {[%clk 0:02:06]} 17. c4 {[%clk 0:01:52]}  Bb7 {[%clk 0:02:03]} 18. cxd5 {[%clk 0:01:48]}  Bxd5 {[%clk 0:02:03]} 19. Nd4 {[%clk 0:01:45]}  Rc8 {[%clk 0:01:53]} 20. Rac1 {[%clk 0:01:18]}  Rxc1 {[%clk 0:01:50]} 21. Rxc1 {[%clk 0:01:18]}  Bxh4 {[%clk 0:01:50]} 22. Nc4 {[%clk 0:01:17]}  Bg5 {[%clk 0:01:47]} 23. Qg3 {[%clk 0:01:06]}  Bxc1 {[%clk 0:01:45]} 24. Qxg6 {[%clk 0:00:55]}  Bxb2 {[%clk 0:01:33]} 25. Nd6 {[%clk 0:00:38]}  Nxd6 {[%clk 0:01:28]} 26. Nxe6+ {[%clk 0:00:38]}  Bxe6 {[%clk 0:01:26]} 27. Qxe6 {[%clk 0:00:39]}  Nf7 {[%clk 0:01:23]} 28. Bxf5 {[%clk 0:00:38]}  Bxe5 {[%clk 0:01:21]} 29. g3 {[%clk 0:00:32]}  Rg8 {[%clk 0:01:19]} 30. Bg6 {[%clk 0:00:23]}  Rxg6 {[%clk 0:01:16]} 31. Qxg6 {[%clk 0:00:23]}  Nb3 {[%clk 0:01:12]} 32. Qf5 {[%clk 0:00:21]}  Nd4 {[%clk 0:01:10]} 33. Qe4 {[%clk 0:00:20]}  Ne6 {[%clk 0:01:06]} 34. f4 {[%clk 0:00:20]}  Qd4+ {[%clk 0:01:05]} 35. Qxd4 {[%clk 0:00:19]}  Bxd4+ {[%clk 0:01:02]} 36. Kg2 {[%clk 0:00:19]} 0-1


[Site "https://www.chess.com"]

[Event "Titled Tuesday Blitz August 1 Early 2023"]
[White "benny_aizenberg"]
[Black "Kashtanov, Ruslan"]
[BlackFideId "4124871"]
[WhiteElo "2661"]
[BlackElo "2459"]
[Result "0-1"]
[Round "4"]
[TimeControl "180+1"]
[Date "2023.08.01"]
[WhiteClock "0:00:00"]
[BlackClock "0:00:08"]
[Board "96"]

1. c4 {[%clk 0:03:00]}  Nf6 {[%clk 0:02:59]} 2. Nc3 {[%clk 0:02:59]}  e5 {[%clk 0:02:39]} 3. Nf3 {[%clk 0:02:55]}  e4 {[%clk 0:02:38]} 4. Ng5 {[%clk 0:02:50]}  c6 {[%clk 0:02:38]} 5. Ngxe4 {[%clk 0:02:44]}  Nxe4 {[%clk 0:02:38]} 6. Nxe4 {[%clk 0:02:45]}  d5 {[%clk 0:02:38]} 7. cxd5 {[%clk 0:02:44]}  cxd5 {[%clk 0:02:39]} 8. Ng3 {[%clk 0:02:44]}  h5 {[%clk 0:02:37]} 9. e3 {[%clk 0:02:42]}  h4 {[%clk 0:02:34]} 10. Ne2 {[%clk 0:02:41]}  Nc6 {[%clk 0:02:29]} 11. d4 {[%clk 0:02:36]}  Bd6 {[%clk 0:02:27]} 12. Nc3 {[%clk 0:02:27]}  Qf6 {[%clk 0:02:19]} 13. Nxd5 {[%clk 0:02:12]}  Qg6 {[%clk 0:02:19]} 14. Qb3 {[%clk 0:01:41]}  O-O {[%clk 0:02:05]} 15. Bd2 {[%clk 0:01:39]}  Be6 {[%clk 0:02:03]} 16. O-O-O {[%clk 0:01:32]}  Rac8 {[%clk 0:01:53]} 17. Bc3 {[%clk 0:01:25]}  Qe4 {[%clk 0:01:44]} 18. Bc4 {[%clk 0:01:16]}  Na5 {[%clk 0:01:43]} 19. Qc2 {[%clk 0:00:34]}  Qxc2+ {[%clk 0:01:35]} 20. Kxc2 {[%clk 0:00:35]}  Nxc4 {[%clk 0:01:34]} 21. Nf4 {[%clk 0:00:35]}  Bxf4 {[%clk 0:01:27]} 22. exf4 {[%clk 0:00:36]}  Bd5 {[%clk 0:01:27]} 23. Rhg1 {[%clk 0:00:32]}  Rfe8 {[%clk 0:01:24]} 24. Kd3 {[%clk 0:00:31]}  Be4+ {[%clk 0:01:21]} 25. Ke2 {[%clk 0:00:29]}  Bxg2+ {[%clk 0:01:19]} 26. Kd3 {[%clk 0:00:27]}  Be4+ {[%clk 0:01:19]} 27. Ke2 {[%clk 0:00:27]}  Bc2+ {[%clk 0:01:19]} 28. Kf3 {[%clk 0:00:27]}  Bxd1+ {[%clk 0:01:19]} 29. Rxd1 {[%clk 0:00:28]}  f5 {[%clk 0:01:13]} 30. d5 {[%clk 0:00:28]}  Nd6 {[%clk 0:01:12]} 31. Rg1 {[%clk 0:00:27]}  Rc7 {[%clk 0:01:08]} 32. Be5 {[%clk 0:00:26]}  Rd7 {[%clk 0:01:07]} 33. Rc1 {[%clk 0:00:26]}  Nf7 {[%clk 0:01:06]} 34. Bc3 {[%clk 0:00:24]}  Rxd5 {[%clk 0:01:05]} 35. Rg1 {[%clk 0:00:18]}  Rd3+ {[%clk 0:01:01]} 36. Kg2 {[%clk 0:00:19]}  h3+ {[%clk 0:01:00]} 37. Kh1 {[%clk 0:00:18]}  Rxc3 {[%clk 0:00:52]} 38. bxc3 {[%clk 0:00:17]}  Nd6 {[%clk 0:00:52]} 39. Rd1 {[%clk 0:00:17]}  Ne4 {[%clk 0:00:50]} 40. Kg1 {[%clk 0:00:17]}  Nxc3 {[%clk 0:00:49]} 41. Ra1 {[%clk 0:00:17]}  Re2 {[%clk 0:00:47]} 42. f3 {[%clk 0:00:16]}  Rg2+ {[%clk 0:00:47]} 43. Kh1 {[%clk 0:00:16]}  Ne2 {[%clk 0:00:45]} 44. a4 {[%clk 0:00:16]}  Nd4 {[%clk 0:00:44]} 45. Rf1 {[%clk 0:00:14]}  Rd2 {[%clk 0:00:41]} 46. Kg1 {[%clk 0:00:13]}  Ne2+ {[%clk 0:00:39]} 47. Kh1 {[%clk 0:00:13]}  Nxf4 {[%clk 0:00:38]} 48. a5 {[%clk 0:00:13]}  b6 {[%clk 0:00:37]} 49. axb6 {[%clk 0:00:12]}  axb6 {[%clk 0:00:35]} 50. Rg1 {[%clk 0:00:11]}  b5 {[%clk 0:00:34]} 51. Rb1 {[%clk 0:00:11]}  b4 {[%clk 0:00:34]} 52. Kg1 {[%clk 0:00:11]}  Nd3 {[%clk 0:00:32]} 53. f4 {[%clk 0:00:11]}  Rg2+ {[%clk 0:00:30]} 54. Kf1 {[%clk 0:00:10]}  Rxh2 {[%clk 0:00:30]} 55. Rb3 {[%clk 0:00:10]}  Rf2+ {[%clk 0:00:29]} 56. Kg1 {[%clk 0:00:11]}  Rg2+ {[%clk 0:00:29]} 57. Kf1 {[%clk 0:00:10]}  Rd2 {[%clk 0:00:27]} 58. Kg1 {[%clk 0:00:06]}  h2+ {[%clk 0:00:18]} 59. Kh1 {[%clk 0:00:06]}  Nf2+ {[%clk 0:00:16]} 60. Kxh2 {[%clk 0:00:06]}  Ne4+ {[%clk 0:00:16]} 61. Kg1 {[%clk 0:00:05]}  Rd4 {[%clk 0:00:15]} 62. Kg2 {[%clk 0:00:05]}  Kf7 {[%clk 0:00:15]} 63. Rb1 {[%clk 0:00:04]}  Ke6 {[%clk 0:00:15]} 64. Rg1 {[%clk 0:00:03]}  Rd2+ {[%clk 0:00:13]} 65. Kf3 {[%clk 0:00:03]}  Rd7 {[%clk 0:00:11]} 66. Ke3 {[%clk 0:00:03]}  Rb7 {[%clk 0:00:11]} 67. Rg6+ {[%clk 0:00:03]}  Kf7 {[%clk 0:00:11]} 68. Rg1 {[%clk 0:00:02]}  b3 {[%clk 0:00:11]} 69. Rb1 {[%clk 0:00:02]}  b2 {[%clk 0:00:11]} 70. Kd4 {[%clk 0:00:03]}  Nd2 {[%clk 0:00:09]} 71. Rd1 {[%clk 0:00:01]}  b1=Q {[%clk 0:00:09]} 72. Rxd2 {[%clk 0:00:00]}  Qg1+ {[%clk 0:00:08]} 0-1


[Site "https://www.chess.com"]

[Event "Titled Tuesday Blitz August 1 Early 2023"]
[White "Weishaeutel, Moritz"]
[Black "Kirillov, Dmitry"]
[WhiteFideId "12967300"]
[BlackFideId "34180572"]
[WhiteElo "2644"]
[BlackElo "2443"]
[Result "1-0"]
[Round "4"]
[TimeControl "180+1"]
[Date "2023.08.01"]
[WhiteClock "0:00:08"]
[BlackClock "0:00:00"]
[Board "100"]

1. e4 {[%clk 0:03:00]}  e5 {[%clk 0:02:58]} 2. d4 {[%clk 0:03:00]}  exd4 {[%clk 0:02:58]} 3. Qxd4 {[%clk 0:03:01]}  Nc6 {[%clk 0:02:58]} 4. Qe3 {[%clk 0:03:02]}  Nf6 {[%clk 0:02:55]} 5. e5 {[%clk 0:03:03]}  Nd5 {[%clk 0:02:28]} 6. Qe4 {[%clk 0:03:03]}  Nb6 {[%clk 0:02:24]} 7. Nf3 {[%clk 0:03:04]}  Bb4+ {[%clk 0:02:22]} 8. c3 {[%clk 0:02:57]}  Be7 {[%clk 0:02:21]} 9. Bf4 {[%clk 0:02:45]}  O-O {[%clk 0:02:16]} 10. Bd3 {[%clk 0:02:44]}  g6 {[%clk 0:02:13]} 11. O-O {[%clk 0:01:57]}  d5 {[%clk 0:02:11]} 12. Qe3 {[%clk 0:01:56]}  Re8 {[%clk 0:01:58]} 13. Nbd2 {[%clk 0:01:51]}  Be6 {[%clk 0:01:56]} 14. Ng5 {[%clk 0:01:47]}  Nd7 {[%clk 0:01:52]} 15. Nxe6 {[%clk 0:01:43]}  fxe6 {[%clk 0:01:52]} 16. Qh3 {[%clk 0:01:44]}  Nc5 {[%clk 0:01:44]} 17. Bc2 {[%clk 0:01:39]}  Bg5 {[%clk 0:01:44]} 18. Bxg5 {[%clk 0:01:38]}  Qxg5 {[%clk 0:01:42]} 19. f4 {[%clk 0:01:39]}  Qe7 {[%clk 0:01:34]} 20. Nf3 {[%clk 0:01:39]}  a5 {[%clk 0:01:14]} 21. Ng5 {[%clk 0:01:24]}  Qg7 {[%clk 0:01:11]} 22. b3 {[%clk 0:00:21]}  h6 {[%clk 0:01:09]} 23. Nf3 {[%clk 0:00:21]}  Rf8 {[%clk 0:00:22]} 24. Nh4 {[%clk 0:00:21]}  Ne4 {[%clk 0:00:09]} 25. Bxe4 {[%clk 0:00:19]}  dxe4 {[%clk 0:00:10]} 26. Qxe6+ {[%clk 0:00:20]}  Kh7 {[%clk 0:00:10]} 27. f5 {[%clk 0:00:17]}  gxf5 {[%clk 0:00:04]} 28. Nxf5 {[%clk 0:00:18]}  Qg5 {[%clk 0:00:04]} 29. Rae1 {[%clk 0:00:09]}  Rae8 {[%clk 0:00:03]} 30. Qd7+ {[%clk 0:00:10]}  Kh8 {[%clk 0:00:00]} 31. h4 {[%clk 0:00:08]} 1-0


[Site "https://www.chess.com"]

[Event "Titled Tuesday Blitz August 1 Early 2023"]
[White "Malek, Jan"]
[Black "Davidson, Kevin"]
[WhiteFideId "21864080"]
[BlackFideId "2056810"]
[WhiteElo "2634"]
[BlackElo "2431"]
[Result "1-0"]
[Round "4"]
[TimeControl "180+1"]
[Date "2023.08.01"]
[WhiteClock "0:00:38"]
[BlackClock "0:00:00"]
[Board "103"]

1. b3 {[%clk 0:02:59]}  g6 {[%clk 0:02:59]} 2. Bb2 {[%clk 0:02:58]}  Nf6 {[%clk 0:02:59]} 3. h4 {[%clk 0:02:58]}  Bg7 {[%clk 0:02:58]} 4. Nh3 {[%clk 0:02:58]}  d6 {[%clk 0:02:41]} 5. d4 {[%clk 0:02:57]}  O-O {[%clk 0:02:35]} 6. Nd2 {[%clk 0:02:58]}  c5 {[%clk 0:02:31]} 7. dxc5 {[%clk 0:02:57]}  dxc5 {[%clk 0:02:30]} 8. Nf4 {[%clk 0:02:55]}  Nc6 {[%clk 0:02:21]} 9. e3 {[%clk 0:02:53]}  Bg4 {[%clk 0:02:10]} 10. Be2 {[%clk 0:02:52]}  Bxe2 {[%clk 0:02:09]} 11. Qxe2 {[%clk 0:02:53]}  Nb4 {[%clk 0:02:08]} 12. O-O {[%clk 0:02:34]}  e6 {[%clk 0:01:42]} 13. a3 {[%clk 0:02:32]}  Nbd5 {[%clk 0:01:41]} 14. Nxd5 {[%clk 0:02:29]}  Nxd5 {[%clk 0:01:38]} 15. Bxg7 {[%clk 0:02:29]}  Kxg7 {[%clk 0:01:39]} 16. Nf3 {[%clk 0:02:29]}  Nc3 {[%clk 0:01:27]} 17. Qc4 {[%clk 0:02:27]}  Qf6 {[%clk 0:01:27]} 18. Qxc5 {[%clk 0:02:24]}  Rfc8 {[%clk 0:01:21]} 19. Qd6 {[%clk 0:02:12]}  Ne2+ {[%clk 0:01:06]} 20. Kh1 {[%clk 0:02:12]}  Rxc2 {[%clk 0:01:06]} 21. Rad1 {[%clk 0:02:06]}  Rac8 {[%clk 0:01:01]} 22. Qh2 {[%clk 0:01:52]}  R8c5 {[%clk 0:00:50]} 23. Rd7 {[%clk 0:01:36]}  h6 {[%clk 0:00:37]} 24. Rfd1 {[%clk 0:01:30]}  Nc3 {[%clk 0:00:32]} 25. Rf1 {[%clk 0:01:13]}  Ne4 {[%clk 0:00:32]} 26. Kg1 {[%clk 0:01:10]}  Rb2 {[%clk 0:00:15]} 27. Nd4 {[%clk 0:01:04]}  e5 {[%clk 0:00:09]} 28. Nf3 {[%clk 0:00:58]}  Rxb3 {[%clk 0:00:06]} 29. Qh3 {[%clk 0:00:50]}  a5 {[%clk 0:00:05]} 30. h5 {[%clk 0:00:47]}  g5 {[%clk 0:00:04]} 31. Nh2 {[%clk 0:00:45]}  Qc6 {[%clk 0:00:01]} 32. Qf5 {[%clk 0:00:39]}  Rc1 {[%clk 0:00:00]} 33. Qxf7+ {[%clk 0:00:38]} 1-0


[Site "https://www.chess.com"]

[Event "Titled Tuesday Blitz August 1 Early 2023"]
[White "Omorjan, Dejan"]
[Black "EsmeraldasAnderson03"]
[WhiteFideId "955345"]
[WhiteElo "2627"]
[BlackElo "2426"]
[Result "0-1"]
[Round "4"]
[TimeControl "180+1"]
[Date "2023.08.01"]
[WhiteClock "0:00:02"]
[BlackClock "0:00:12"]
[Board "106"]

1. d4 {[%clk 0:03:00]}  d5 {[%clk 0:02:59]} 2. Nf3 {[%clk 0:03:01]}  Nf6 {[%clk 0:02:59]} 3. e3 {[%clk 0:03:02]}  Bf5 {[%clk 0:02:50]} 4. c4 {[%clk 0:03:00]}  e6 {[%clk 0:02:50]} 5. Nc3 {[%clk 0:02:59]}  c6 {[%clk 0:02:50]} 6. Nh4 {[%clk 0:02:59]}  Bg4 {[%clk 0:02:49]} 7. Qb3 {[%clk 0:02:57]}  Qb6 {[%clk 0:02:46]} 8. h3 {[%clk 0:02:52]}  Bh5 {[%clk 0:02:45]} 9. g4 {[%clk 0:02:52]}  Bg6 {[%clk 0:02:45]} 10. Nxg6 {[%clk 0:02:50]}  hxg6 {[%clk 0:02:45]} 11. Bg2 {[%clk 0:02:50]}  Nbd7 {[%clk 0:02:39]} 12. Bd2 {[%clk 0:02:42]}  dxc4 {[%clk 0:02:33]} 13. Qxc4 {[%clk 0:02:34]}  Be7 {[%clk 0:02:32]} 14. Qb3 {[%clk 0:02:08]}  Qxb3 {[%clk 0:02:30]} 15. axb3 {[%clk 0:02:09]}  a6 {[%clk 0:02:29]} 16. Ke2 {[%clk 0:02:08]}  Nd5 {[%clk 0:02:16]} 17. e4 {[%clk 0:01:57]}  Nb4 {[%clk 0:02:04]} 18. Rhc1 {[%clk 0:01:56]}  e5 {[%clk 0:01:39]} 19. dxe5 {[%clk 0:01:04]}  Nc5 {[%clk 0:01:36]} 20. Na2 {[%clk 0:00:37]}  Nxa2 {[%clk 0:01:29]} 21. Rxa2 {[%clk 0:00:38]}  Nxb3 {[%clk 0:01:29]} 22. Rd1 {[%clk 0:00:35]}  Nxd2 {[%clk 0:01:20]} 23. Rxd2 {[%clk 0:00:36]}  Bg5 {[%clk 0:01:16]} 24. Rd3 {[%clk 0:00:30]}  Rd8 {[%clk 0:01:16]} 25. Rb3 {[%clk 0:00:14]}  Rd7 {[%clk 0:01:12]} 26. Ra1 {[%clk 0:00:09]}  Ke7 {[%clk 0:01:06]} 27. Rf1 {[%clk 0:00:03]}  Bf4 {[%clk 0:01:05]} 28. e6 {[%clk 0:00:03]}  Kxe6 {[%clk 0:00:56]} 29. Rd1 {[%clk 0:00:03]}  Rhd8 {[%clk 0:00:54]} 30. Rbd3 {[%clk 0:00:02]}  b5 {[%clk 0:00:35]} 31. Rxd7 {[%clk 0:00:02]}  Rxd7 {[%clk 0:00:35]} 32. Rxd7 {[%clk 0:00:02]}  Kxd7 {[%clk 0:00:36]} 33. Kd3 {[%clk 0:00:02]}  c5 {[%clk 0:00:34]} 34. Bf3 {[%clk 0:00:03]}  Be5 {[%clk 0:00:32]} 35. b3 {[%clk 0:00:03]}  Bd4 {[%clk 0:00:32]} 36. Be2 {[%clk 0:00:03]}  Bxf2 {[%clk 0:00:31]} 37. e5 {[%clk 0:00:03]}  Bd4 {[%clk 0:00:27]} 38. Ke4 {[%clk 0:00:04]}  Ke6 {[%clk 0:00:26]} 39. Bd3 {[%clk 0:00:04]}  Bxe5 {[%clk 0:00:26]} 40. Be2 {[%clk 0:00:04]}  f5+ {[%clk 0:00:25]} 41. gxf5+ {[%clk 0:00:04]}  gxf5+ {[%clk 0:00:26]} 42. Kf3 {[%clk 0:00:05]}  g5 {[%clk 0:00:25]} 43. Bd3 {[%clk 0:00:05]}  Bd4 {[%clk 0:00:25]} 44. Bc2 {[%clk 0:00:05]}  Ke5 {[%clk 0:00:25]} 45. Bd3 {[%clk 0:00:06]}  Bb2 {[%clk 0:00:23]} 46. Bb1 {[%clk 0:00:06]}  c4 {[%clk 0:00:21]} 47. bxc4 {[%clk 0:00:06]}  bxc4 {[%clk 0:00:21]} 48. Bc2 {[%clk 0:00:06]}  a5 {[%clk 0:00:21]} 49. Ke3 {[%clk 0:00:06]}  Bd4+ {[%clk 0:00:19]} 50. Kf3 {[%clk 0:00:07]}  Bc5 {[%clk 0:00:17]} 51. Ba4 {[%clk 0:00:05]}  f4 {[%clk 0:00:14]} 52. Bc2 {[%clk 0:00:04]}  Kd4 {[%clk 0:00:14]} 53. Bf5 {[%clk 0:00:04]}  a4 {[%clk 0:00:14]} 54. Bc2 {[%clk 0:00:04]}  a3 {[%clk 0:00:14]} 55. Bb1 {[%clk 0:00:02]}  c3 {[%clk 0:00:12]} 56. Bc2 {[%clk 0:00:02]}  a2 {[%clk 0:00:12]} 0-1


[Site "https://www.chess.com"]

[Event "Titled Tuesday Blitz August 1 Early 2023"]
[White "Begunov, Konstantin"]
[Black "Radzhabov, Rodion"]
[WhiteFideId "4118510"]
[BlackFideId "884715"]
[WhiteElo "2398"]
[BlackElo "2625"]
[Result "0-1"]
[Round "4"]
[TimeControl "180+1"]
[Date "2023.08.01"]
[WhiteClock "0:00:00"]
[BlackClock "0:01:04"]
[Board "108"]

1. d4 {[%clk 0:03:00]}  Nf6 {[%clk 0:02:59]} 2. c4 {[%clk 0:03:00]}  e6 {[%clk 0:02:55]} 3. Nf3 {[%clk 0:02:59]}  Bb4+ {[%clk 0:02:53]} 4. Nbd2 {[%clk 0:02:59]}  b6 {[%clk 0:02:51]} 5. a3 {[%clk 0:02:59]}  Bxd2+ {[%clk 0:02:51]} 6. Bxd2 {[%clk 0:03:00]}  Bb7 {[%clk 0:02:52]} 7. Bg5 {[%clk 0:03:00]}  d6 {[%clk 0:02:52]} 8. e3 {[%clk 0:02:58]}  Nbd7 {[%clk 0:02:52]} 9. Qc2 {[%clk 0:02:57]}  h6 {[%clk 0:02:51]} 10. Bh4 {[%clk 0:02:57]}  c5 {[%clk 0:02:48]} 11. dxc5 {[%clk 0:02:54]}  bxc5 {[%clk 0:02:40]} 12. Be2 {[%clk 0:02:21]}  Qb6 {[%clk 0:02:29]} 13. O-O {[%clk 0:02:15]}  O-O {[%clk 0:02:24]} 14. Rfd1 {[%clk 0:02:10]}  Be4 {[%clk 0:02:19]} 15. Qc3 {[%clk 0:02:02]}  Rab8 {[%clk 0:02:13]} 16. b4 {[%clk 0:01:49]}  cxb4 {[%clk 0:02:05]} 17. axb4 {[%clk 0:01:50]}  d5 {[%clk 0:02:01]} 18. c5 {[%clk 0:01:19]}  Qxb4 {[%clk 0:01:57]} 19. Qxb4 {[%clk 0:01:16]}  Rxb4 {[%clk 0:01:58]} 20. c6 {[%clk 0:01:17]}  Bxf3 {[%clk 0:01:52]} 21. gxf3 {[%clk 0:00:51]}  Rxh4 {[%clk 0:01:48]} 22. cxd7 {[%clk 0:00:49]}  Nxd7 {[%clk 0:01:48]} 23. Rxa7 {[%clk 0:00:49]}  Nf6 {[%clk 0:01:47]} 24. f4 {[%clk 0:00:42]}  g5 {[%clk 0:01:45]} 25. fxg5 {[%clk 0:00:30]}  hxg5 {[%clk 0:01:46]} 26. Kg2 {[%clk 0:00:19]}  Kg7 {[%clk 0:01:42]} 27. Rd4 {[%clk 0:00:19]}  Rxd4 {[%clk 0:01:38]} 28. exd4 {[%clk 0:00:20]}  Rb8 {[%clk 0:01:35]} 29. Ra4 {[%clk 0:00:19]}  Rb2 {[%clk 0:01:34]} 30. Bf3 {[%clk 0:00:18]}  g4 {[%clk 0:01:28]} 31. Bd1 {[%clk 0:00:17]}  Rd2 {[%clk 0:01:26]} 32. Ra1 {[%clk 0:00:12]}  Rxd4 {[%clk 0:01:23]} 33. Kg3 {[%clk 0:00:13]}  Kg6 {[%clk 0:01:20]} 34. Rc1 {[%clk 0:00:10]}  Kg5 {[%clk 0:01:20]} 35. h3 {[%clk 0:00:09]}  Ne4+ {[%clk 0:01:19]} 36. Kg2 {[%clk 0:00:07]}  gxh3+ {[%clk 0:01:19]} 37. Kf3 {[%clk 0:00:04]}  h2 {[%clk 0:01:16]} 38. Bc2 {[%clk 0:00:04]}  Nxf2 {[%clk 0:01:03]} 39. Kxf2 {[%clk 0:00:03]}  Rd2+ {[%clk 0:01:04]} 40. Kg3 {[%clk 0:00:00]}  Rxc2 {[%clk 0:01:04]} 0-1


[Site "https://www.chess.com"]

[Event "Titled Tuesday Blitz August 1 Early 2023"]
[White "Ovetchkin, Roman"]
[Black "Buscar, Michael"]
[WhiteFideId "4119991"]
[BlackFideId "2603616"]
[WhiteElo "2624"]
[BlackElo "2388"]
[Result "1-0"]
[Round "4"]
[TimeControl "180+1"]
[Date "2023.08.01"]
[WhiteClock "0:00:12"]
[BlackClock "0:00:11"]
[Board "110"]

1. d4 {[%clk 0:02:56]}  d5 {[%clk 0:02:57]} 2. c4 {[%clk 0:02:55]}  e6 {[%clk 0:02:57]} 3. Nf3 {[%clk 0:02:54]}  c5 {[%clk 0:02:55]} 4. cxd5 {[%clk 0:02:54]}  exd5 {[%clk 0:02:56]} 5. g3 {[%clk 0:02:54]}  Nc6 {[%clk 0:02:56]} 6. Bg2 {[%clk 0:02:54]}  Nf6 {[%clk 0:02:57]} 7. O-O {[%clk 0:02:55]}  Be7 {[%clk 0:02:58]} 8. dxc5 {[%clk 0:02:54]}  Bxc5 {[%clk 0:02:57]} 9. Qc2 {[%clk 0:02:54]}  Be7 {[%clk 0:02:55]} 10. Rd1 {[%clk 0:02:52]}  O-O {[%clk 0:02:49]} 11. Nc3 {[%clk 0:02:51]}  Be6 {[%clk 0:02:48]} 12. Ng5 {[%clk 0:02:49]}  Rc8 {[%clk 0:02:46]} 13. Nxd5 {[%clk 0:02:35]}  Bxd5 {[%clk 0:02:36]} 14. Rxd5 {[%clk 0:02:33]}  Nb4 {[%clk 0:02:32]} 15. Rxd8 {[%clk 0:02:28]}  Nxc2 {[%clk 0:02:30]} 16. Rxf8+ {[%clk 0:02:26]}  Kxf8 {[%clk 0:02:16]} 17. Rb1 {[%clk 0:02:25]}  h6 {[%clk 0:02:15]} 18. Nf3 {[%clk 0:02:13]}  Bc5 {[%clk 0:02:06]} 19. e3 {[%clk 0:02:08]}  Rd8 {[%clk 0:01:58]} 20. Bd2 {[%clk 0:02:04]}  Ne4 {[%clk 0:01:58]} 21. Be1 {[%clk 0:01:04]}  Nxe1 {[%clk 0:01:48]} 22. Rxe1 {[%clk 0:01:05]}  b6 {[%clk 0:01:32]} 23. Rc1 {[%clk 0:00:57]}  a5 {[%clk 0:01:30]} 24. Kf1 {[%clk 0:00:55]}  Nd2+ {[%clk 0:01:28]} 25. Ke2 {[%clk 0:00:55]}  Nxf3 {[%clk 0:01:26]} 26. Bxf3 {[%clk 0:00:56]}  Ke7 {[%clk 0:01:22]} 27. h4 {[%clk 0:00:56]}  Rd6 {[%clk 0:01:08]} 28. h5 {[%clk 0:00:55]}  Bb4 {[%clk 0:01:02]} 29. Rc2 {[%clk 0:00:54]}  Kf6 {[%clk 0:00:53]} 30. a3 {[%clk 0:00:52]}  Bc5 {[%clk 0:00:53]} 31. Rc4 {[%clk 0:00:53]}  Re6 {[%clk 0:00:48]} 32. Bd5 {[%clk 0:00:50]}  Re5 {[%clk 0:00:44]} 33. Bf3 {[%clk 0:00:45]}  Ke7 {[%clk 0:00:36]} 34. g4 {[%clk 0:00:43]}  Bd6 {[%clk 0:00:28]} 35. Be4 {[%clk 0:00:41]}  Rb5 {[%clk 0:00:21]} 36. Rc2 {[%clk 0:00:38]}  Be5 {[%clk 0:00:21]} 37. f4 {[%clk 0:00:32]}  Bxb2 {[%clk 0:00:19]} 38. Bd3 {[%clk 0:00:22]}  Rb3 {[%clk 0:00:16]} 39. Rc7+ {[%clk 0:00:17]}  Kf8 {[%clk 0:00:16]} 40. a4 {[%clk 0:00:12]}  Ba3 {[%clk 0:00:15]} 41. Rxf7+ {[%clk 0:00:10]}  Kxf7 {[%clk 0:00:14]} 42. Bc4+ {[%clk 0:00:10]}  Kf6 {[%clk 0:00:14]} 43. Bxb3 {[%clk 0:00:11]}  Bc5 {[%clk 0:00:14]} 44. e4 {[%clk 0:00:11]}  Bd6 {[%clk 0:00:14]} 45. e5+ {[%clk 0:00:11]}  Bxe5 {[%clk 0:00:14]} 46. fxe5+ {[%clk 0:00:11]}  Kxe5 {[%clk 0:00:15]} 47. Ke3 {[%clk 0:00:12]}  Kd6 {[%clk 0:00:11]} 48. Kd4 {[%clk 0:00:12]} 1-0


[Site "https://www.chess.com"]